bitfinex/quotes_BTCUSD_20220105
["timestamp","ask_amount","ask_price","bid_price","bid_amount"]
[1641417506729,0.26432837,44087.0,44075.0,1.097e-05]
[1641417507030,0.056748,44076.0,44068.0,0.01357782]
[1641417507228,0.2185463,44075.0,44068.0,0.01357782]
[1641417507527,0.2752913,44075.0,44068.0,0.01357782]
[1641417508125,0.056745,44075.0,44068.0,0.01357782]
[1641417508931,0.05675,44073.0,44068.0,0.02357782]
[1641417509127,0.007,44075.0,44068.0,0.02357782]
[1641417509581,0.007,44075.0,44069.0,0.368814]
[1641417509981,0.007,44075.0,44074.0,0.27180653]
[1641417510180,0.056736,44081.0,44069.0,0.1]
[1641417510581,0.056736,44081.0,44079.0,0.57446935]
[1641417510782,0.051736,44081.0,44079.0,0.57446935]
[1641417512181,0.051736,44081.0,44069.0,0.1]
[1641417512383,0.051736,44081.0,44068.0,0.11357782]
[1641417512581,0.051736,44081.0,44068.0,0.01357782]
[1641417512782,0.056738,44078.0,44068.0,0.06157782]
[1641417512984,0.056738,44078.0,44068.0,0.36136687]
[1641417513222,0.056738,44078.0,44071.0,0.61556423]
[1641417513623,0.15800379,44082.0,44071.0,0.61556423]
[1641417513821,0.056741,44076.0,44071.0,0.61556423]
[1641417514426,0.05674,44079.0,44071.0,0.61556423]
[1641417514822,0.002,44076.0,44071.0,0.65056423]
[1641417515225,0.00169254,44076.0,44071.0,0.65056423]
[1641417515423,0.00169254,44076.0,44071.0,0.035]
[1641417516023,0.056744,44078.0,44068.0,0.31336687]
[1641417516223,0.0452,44077.0,44068.0,0.31336687]
[1641417516429,0.0452,44077.0,44068.0,0.11357782]
[1641417516975,0.15991644,44083.0,44068.0,0.20557782]
[1641417517176,0.04144244,44083.0,44069.0,0.00122919]
[1641417517380,0.04144244,44083.0,44074.0,0.47457756]
[1641417517575,0.09817444,44083.0,44074.0,0.85983168]
[1641417518078,0.08896997,44088.0,44077.0,0.00129841]
[1641417518281,0.9283,44090.0,44077.0,0.00129841]
[1641417518480,0.9283,44090.0,44083.0,0.02675865]
[1641417518779,0.05672,44092.0,44083.0,0.13483865]
[1641417519579,0.41313382,44094.0,44084.0,0.35989222]
[1641417519979,0.40813382,44094.0,44084.0,0.45989222]
[1641417520386,0.40813382,44094.0,44091.0,0.61936615]
[1641417520646,0.40813382,44094.0,44093.0,0.00124118]
[1641417520838,0.40813382,44094.0,44093.0,0.11351118]
[1641417521037,0.40813382,44094.0,44093.0,0.48232518]
[1641417521038,0.41813382,44094.0,44093.0,0.48232518]
[1641417521536,0.41813382,44094.0,44093.0,0.58232518]
[1641417521941,0.41813382,44094.0,44093.0,0.48232518]
[1641417522142,0.41813382,44094.0,44093.0,0.06523]
[1641417522143,0.40813382,44094.0,44093.0,0.06523]
[1641417522339,0.40813382,44094.0,44088.0,0.02]
[1641417522340,0.40313382,44094.0,44088.0,0.02]
[1641417522939,0.40313382,44094.0,44093.0,0.25771014]
[1641417523140,0.39813382,44094.0,44093.0,0.34946014]
[1641417523639,0.39813382,44094.0,44093.0,0.71827414]
[1641417523839,0.39813382,44094.0,44093.0,1.24112444]
[1641417524040,0.39813382,44094.0,44093.0,1.34112444]
[1641417524239,0.39813382,44094.0,44093.0,0.91956401]
[1641417524876,0.39813382,44094.0,44093.0,0.94656401]
[1641417525074,0.39813382,44094.0,44093.0,0.68885387]
[1641417525274,0.39813382,44094.0,44093.0,0.21875]
[1641417525474,0.39813382,44094.0,44093.0,0.127]
[1641417525675,0.39813382,44094.0,44093.0,0.02823659]
[1641417525873,0.39813382,44094.0,44093.0,0.027]
[1641417526274,0.39813382,44094.0,44088.0,0.02]
[1641417526476,0.45484882,44094.0,44088.0,0.07]
[1641417526674,0.39813382,44094.0,44088.0,0.02]
[1641417526876,0.39813382,44094.0,44088.0,0.049]
[1641417527079,0.39313382,44094.0,44088.0,0.049]
[1641417527576,0.056717,44092.0,44088.0,0.049]
[1641417527776,0.11345,44090.0,44088.0,0.049]
[1641417528232,0.39313382,44094.0,44088.0,0.02]
[1641417529030,0.44985082,44094.0,44088.0,0.066]
[1641417529634,0.44985082,44094.0,44088.0,0.36951706]
[1641417529930,0.056717,44093.0,44088.0,0.36951706]
[1641417530332,0.39313382,44094.0,44088.0,0.32351706]
[1641417530530,0.39313382,44094.0,44088.0,0.47351706]
[1641417530731,0.39313382,44094.0,44090.0,0.61346447]
[1641417531131,0.39313382,44094.0,44088.0,0.297]
[1641417531970,0.38813382,44094.0,44088.0,0.347]
[1641417532174,0.38813382,44094.0,44088.0,1.13771382]
[1641417532371,0.056716,44093.0,44088.0,0.80988233]
[1641417532571,0.056716,44093.0,44088.0,0.90988233]
[1641417532870,0.056716,44093.0,44088.0,0.96988233]
[1641417533370,0.056716,44093.0,44088.0,1.23609214]
[1641417533571,0.38813382,44094.0,44089.0,0.368814]
[1641417533771,0.38813382,44094.0,44088.0,1.23609214]
[1641417533973,0.38813382,44094.0,44090.0,0.00129989]
[1641417534572,0.38813382,44094.0,44092.0,0.43349362]
[1641417534973,0.30203769,44109.0,44092.0,0.43349362]
[1641417535174,0.0452,44099.0,44092.0,0.53349362]
[1641417535372,0.0452,44099.0,44092.0,0.43349362]
[1641417535635,0.11342,44101.0,44092.0,0.43349362]
[1641417536026,0.170131,44101.0,44092.0,0.53349362]
[1641417536227,0.05671,44098.0,44095.0,0.52455315]
[1641417536428,0.05671,44099.0,44092.0,0.53349362]
[1641417536627,0.05671,44099.0,44095.0,0.29461471]
[1641417536829,0.05671,44099.0,44092.0,0.43349362]
[1641417537028,0.05671,44099.0,44092.0,0.58949362]
[1641417537432,0.113419,44099.0,44092.0,0.58949362]
[1641417537629,0.113419,44099.0,44096.0,0.48546567]
[1641417538929,0.056706,44101.0,44096.0,0.53146567]
[1641417539129,0.113412,44101.0,44096.0,0.53146567]
[1641417539988,0.056707,44100.0,44096.0,0.53146567]
[1641417540886,0.113414,44104.0,44097.0,0.00128791]
[1641417541184,0.056705,44102.0,44097.0,0.00128791]
[1641417541387,0.108414,44104.0,44097.0,0.00128791]
[1641417542185,0.056706,44101.0,44097.0,0.00128791]
[1641417542390,0.101906,44101.0,44089.0,0.00123186]
[1641417542590,0.158631,44101.0,44089.0,0.00123186]
[1641417542987,0.158631,44101.0,44089.0,0.01123186]
[1641417543227,0.158631,44101.0,44089.0,0.54656694]
[1641417543430,0.056716,44095.0,44089.0,0.82029951]
[1641417543626,0.158621,44101.0,44090.0,0.368814]
[1641417543825,0.158621,44101.0,44089.0,0.82029951]
[1641417544225,0.158621,44101.0,44089.0,0.81029951]
[1641417544825,0.056713,44096.0,44089.0,0.81029951]
[1641417545030,0.1962263,44096.0,44089.0,0.05523186]
[1641417545236,0.113443,44095.0,44089.0,0.054]
[1641417545429,0.29734411,44094.0,44089.0,0.054]
[1641417545626,0.0452,44093.0,44089.0,0.054]
[1641417545826,0.21537168,44093.0,44089.0,0.054]
[1641417546027,0.056727,44092.0,44089.0,0.054]
[1641417546230,0.25095708,44091.0,44088.0,0.02]
[1641417546429,0.30095708,44091.0,44088.0,0.02]
[1641417546628,0.0452,44091.0,44088.0,0.02]
[1641417546884,0.108929,44091.0,44088.0,0.015]
[1641417547087,0.012,44091.0,44088.0,0.015]
[1641417547387,0.012,44091.0,44090.0,0.00125086]
[1641417547586,0.012,44091.0,44090.0,2.13911886]
[1641417547987,0.012,44091.0,44090.0,2.23911886]
[1641417548184,0.05670852,44106.0,44090.0,2.28911886]
[1641417548385,0.056708,44101.0,44099.0,0.54886274]
[1641417548586,0.056705,44103.0,44099.0,0.62030274]
[1641417548787,0.02525526,44110.0,44099.0,0.62030274]
[1641417548985,0.02525526,44110.0,44099.0,0.63630274]
[1641417549185,0.08196025,44110.0,44100.0,0.00124868]
[1641417549387,0.02525526,44110.0,44100.0,0.00124868]
[1641417549684,0.02525526,44110.0,44101.0,0.37246734]
[1641417549885,0.056706,44105.0,44101.0,0.37246734]
[1641417550087,0.056706,44103.0,44101.0,0.37246734]
[1641417550291,0.05,44109.0,44101.0,0.37246734]
[1641417550734,0.12525526,44110.0,44101.0,0.37246734]
[1641417550936,0.056705,44105.0,44101.0,0.006]
[1641417551135,0.170133,44103.0,44101.0,0.006]
[1641417551534,1.43671,44102.0,44101.0,0.006]
[1641417551934,2.28671,44102.0,44101.0,0.236]
[1641417552135,1.43671,44102.0,44101.0,0.23]
[1641417552535,0.05671,44102.0,44101.0,0.7955956]
[1641417552840,0.05671,44102.0,44101.0,0.23]
[1641417553035,1.08071,44102.0,44101.0,0.236]
[1641417553436,0.06071,44102.0,44101.0,0.236]
[1641417553637,2.516,44101.0,44092.0,0.09000383]
[1641417553952,2.516,44101.0,44077.0,0.01366696]
[1641417553953,0.52345389,44093.0,44077.0,0.01366696]
[1641417554142,0.056737,44084.0,44077.0,0.01366696]
[1641417554390,0.0452,44083.0,44073.0,0.0135322]
[1641417554784,0.05673482,44080.0,44074.0,0.32533147]
[1641417555491,0.056736,44077.0,44074.0,0.32533147]
[1641417556088,0.05673911,44077.0,44074.0,0.32533147]
[1641417556287,0.05673911,44077.0,44073.0,0.45718653]
[1641417556689,0.056739,44076.0,44073.0,0.0135322]
[1641417557089,0.1134801,44076.0,44073.0,0.0225322]
[1641417557389,0.1133801,44076.0,44073.0,0.0225322]
[1641417557888,0.158684,44075.0,44073.0,0.0225322]
[1641417558156,2.50273611,44074.0,44073.0,0.0225322]
[1641417558341,2.59922186,44074.0,44073.0,0.0135322]
[1641417558544,2.59922186,44074.0,44055.0,0.00022]
[1641417558545,0.00129073,44058.0,44055.0,0.00022]
[1641417558745,0.00129073,44058.0,44052.0,0.0001]
[1641417558746,0.20301116,44057.0,44052.0,0.0001]
[1641417558943,0.51801455,44053.0,44052.0,0.0001]
[1641417559241,0.56321455,44053.0,44052.0,0.0001]
[1641417559443,0.61321455,44053.0,44052.0,0.0001]
[1641417559845,0.56321455,44053.0,44052.0,0.0001]
[1641417560043,0.71321455,44053.0,44051.0,4e-05]
[1641417560243,0.13123581,44052.0,44050.0,0.00033]
[1641417560442,0.0452,44051.0,44046.0,0.01410883]
[1641417560842,0.19792227,44050.0,44046.0,0.01410883]
[1641417561043,0.24312227,44050.0,44046.0,0.01410883]
[1641417561449,0.0452,44050.0,44046.0,0.01410883]
[1641417561886,0.23677761,44050.0,44046.0,0.01410883]
[1641417562287,0.23677761,44050.0,44046.0,0.00044]
[1641417562488,0.23677761,44050.0,44049.0,0.23022]
[1641417562686,0.2880428,44050.0,44049.0,0.23022]
[1641417562887,2.5180428,44050.0,44049.0,0.23022]
[1641417563087,2.28127515,44049.0,44048.0,0.00011]
[1641417563291,2.32647515,44049.0,44048.0,0.00011]
[1641417563488,0.04647515,44049.0,44048.0,0.00011]
[1641417563688,0.0452,44049.0,44048.0,0.00011]
[1641417563888,1.1252,44049.0,44048.0,0.00011]
[1641417564688,0.0452,44049.0,44048.0,0.00011]
[1641417564890,1.3452,44049.0,44048.0,0.00011]
[1641417565090,0.0492,44049.0,44048.0,0.01311]
[1641417565834,0.5892,44049.0,44048.0,0.01311]
[1641417566232,0.77726001,44049.0,44048.0,0.00011]
[1641417566432,0.5852,44049.0,44048.0,0.00011]
[1641417566832,1.4052,44049.0,44048.0,0.00011]
[1641417567033,1.4102,44049.0,44048.0,0.01611]
[1641417567436,0.0502,44049.0,44048.0,0.01611]
[1641417567833,1.7102,44049.0,44048.0,0.01611]
[1641417568337,0.04427706,44049.0,44048.0,0.00011]
[1641417568732,0.97427706,44049.0,44048.0,0.00011]
[1641417568933,0.97927706,44049.0,44048.0,0.02611]
[1641417569133,0.97427706,44049.0,44048.0,0.02611]
[1641417569580,0.04427706,44049.0,44048.0,0.02611]
[1641417569781,0.55427706,44049.0,44048.0,0.02611]
[1641417570280,0.51,44049.0,44048.0,0.00011]
[1641417571082,0.516,44049.0,44048.0,0.02911]
[1641417571684,0.006,44049.0,44048.0,0.02911]
[1641417572290,0.006,44049.0,44048.0,0.12911]
[1641417572485,0.006,44049.0,44048.0,0.61409323]
[1641417572685,0.006,44049.0,44048.0,1.637924]
[1641417572888,0.01366892,44058.0,44048.0,0.938924]
[1641417573166,0.01366892,44058.0,44055.0,0.61173038]
[1641417574459,0.00125889,44061.0,44049.0,1.2835965]
[1641417574460,0.11352926,44056.0,44049.0,1.2835965]
[1641417574666,0.00123463,44050.0,44049.0,1.2835965]
[1641417574857,0.00123463,44050.0,44048.0,0.23011]
[1641417575060,0.00123463,44050.0,44049.0,0.024]
[1641417575257,0.0452,44056.0,44049.0,0.024]
[1641417575258,0.19050324,44055.0,44049.0,0.024]
[1641417575459,0.22710767,44052.0,44050.0,0.40078004]
[1641417575860,0.113544,44053.0,44050.0,0.40078004]
[1641417576659,0.113544,44053.0,44048.0,0.23011]
[1641417576886,0.05677,44051.0,44048.0,0.23011]
[1641417577083,0.05677,44051.0,44050.0,0.012]
[1641417577084,2.47144541,44051.0,44050.0,0.012]
[1641417577284,2.5862881,44051.0,44050.0,0.012]
[1641417577983,2.6930591,44051.0,44050.0,0.012]
[1641417578385,0.17161369,44051.0,44048.0,0.23011]
[1641417578591,0.101975,44050.0,44048.0,0.23011]
[1641417578983,0.21553,44050.0,44048.0,0.23011]
[1641417579185,0.27230637,44050.0,44048.0,0.23011]
[1641417579585,0.15875137,44050.0,44048.0,0.23011]
[1641417581038,0.11655137,44050.0,44048.0,0.24511]
[1641417581536,0.17332737,44050.0,44048.0,0.24511]
[1641417582236,0.17032737,44050.0,44048.0,0.23011]
[1641417582437,0.17032737,44050.0,44049.0,1.28379131]
[1641417582637,0.86032737,44050.0,44049.0,1.28379131]
[1641417583137,0.86432737,44050.0,44049.0,1.29579131]
[1641417584386,0.86032737,44050.0,44049.0,1.28379131]
[1641417584586,1.73032737,44050.0,44049.0,1.28379131]
[1641417584887,1.73032737,44050.0,44048.0,0.23011]
[1641417585090,2.34380117,44049.0,44048.0,0.23011]
[1641417585487,2.15,44049.0,44048.0,0.23011]
[1641417585886,0.18332737,44050.0,44048.0,0.79153454]
[1641417586287,0.17032737,44050.0,44048.0,0.79153454]
[1641417586691,0.17032737,44050.0,44048.0,2.07536074]
[1641417587086,0.17332737,44050.0,44048.0,0.82953454]
[1641417587888,0.17332737,44050.0,44048.0,0.26811]
[1641417588340,0.17032737,44050.0,44048.0,0.23011]
[1641417589240,0.16462737,44050.0,44048.0,0.23711]
[1641417589439,0.21462737,44050.0,44048.0,0.23711]
[1641417589642,0.16462737,44050.0,44048.0,0.23711]
[1641417590942,0.16162737,44050.0,44048.0,0.23011]
[1641417591146,0.16162737,44050.0,44049.0,2.48906492]
[1641417591147,0.116851,44050.0,44049.0,2.48906492]
[1641417591347,0.4065,44067.0,44050.0,1.26353807]
[1641417591551,0.5,44059.0,44051.0,0.37005815]
[1641417591744,0.4065,44067.0,44052.0,0.58014811]
[1641417592193,0.056763,44061.0,44052.0,0.82432762]
[1641417592391,0.056763,44061.0,44053.0,0.37102864]
[1641417592392,0.056764,44057.0,44053.0,0.37102864]
[1641417592592,0.113529,44057.0,44054.0,0.368814]
[1641417592793,0.2499,44063.0,44054.0,0.368814]
[1641417592992,0.2499,44063.0,44061.0,0.39509865]
[1641417593193,0.363428,44063.0,44054.0,0.016]
[1641417593392,0.476956,44063.0,44054.0,0.016]
[1641417593592,0.056765,44059.0,44054.0,0.016]
[1641417593794,0.113532,44058.0,44054.0,0.016]
[1641417594292,0.113532,44058.0,44055.0,0.44565061]
[1641417594493,0.113532,44057.0,44055.0,0.44565061]
[1641417594692,0.056766,44056.0,44055.0,0.44565061]
[1641417595091,0.056766,44056.0,44055.0,0.45765061]
[1641417595738,0.056766,44056.0,44055.0,0.012]
[1641417596138,0.24679149,44056.0,44055.0,0.012]
[1641417596337,0.24679149,44056.0,44047.0,0.00055]
[1641417596537,0.056777,44053.0,44047.0,0.00055]
[1641417596839,0.05677478,44050.0,44047.0,0.64158294]
[1641417597236,0.05677478,44050.0,44048.0,0.24011]
[1641417598038,0.056776,44049.0,44048.0,0.24011]
[1641417598237,0.056776,44049.0,44048.0,0.23011]
[1641417599039,0.061776,44049.0,44048.0,0.24111]
[1641417600300,0.056776,44049.0,44048.0,0.23011]
[1641417601098,0.006,44049.0,44048.0,0.611924]
[1641417602295,0.056768,44051.0,44049.0,0.368814]
[1641417602796,0.056766,44053.0,44049.0,0.368814]
[1641417603274,0.056766,44053.0,44049.0,0.398814]
[1641417603473,0.22827417,44059.0,44050.0,0.35396672]
[1641417603672,0.22827417,44059.0,44057.0,0.60436236]
[1641417603870,0.20827417,44059.0,44058.0,0.37868471]
[1641417605072,0.21827417,44059.0,44058.0,0.37868471]
[1641417606472,0.20827417,44059.0,44058.0,0.37868471]
[1641417607093,0.22027417,44059.0,44058.0,0.37868471]
[1641417608092,0.2125847,44059.0,44058.0,0.37868471]
[1641417608294,0.2125847,44059.0,44058.0,1.59208471]
[1641417608295,0.012,44059.0,44058.0,1.59208471]
[1641417608495,0.011814,44059.0,44058.0,1.96218007]
[1641417608892,0.011814,44059.0,44058.0,2.06218007]
[1641417609095,0.011814,44059.0,44058.0,2.08218007]
[1641417609495,1.4e-05,44059.0,44058.0,0.83218007]
[1641417609697,1.4e-05,44059.0,44058.0,0.02]
[1641417610295,1.9,44059.0,44058.0,0.02]
[1641417610495,0.056774,44057.0,44052.0,0.01357844]
[1641417610746,0.17032191,44055.0,44052.0,0.01357844]
[1641417611149,0.31706239,44055.0,44052.0,0.01357844]
[1641417611345,0.11354791,44055.0,44052.0,0.01357844]
[1641417611546,0.22032191,44055.0,44052.0,0.01357844]
[1641417611945,0.25851857,44054.0,44052.0,0.01357844]
[1641417612144,2.37064592,44053.0,44052.0,0.01357844]
[1641417612346,0.056782,44051.0,44048.0,0.00011]
[1641417612650,0.170346,44051.0,44048.0,0.00011]
[1641417612849,0.056782,44050.0,44048.0,0.00011]
[1641417613046,0.11356288,44050.0,44048.0,0.00011]
[1641417613247,0.17034488,44050.0,44048.0,0.00011]
[1641417614047,0.17034488,44050.0,44048.0,0.23011]
[1641417614249,1.60872004,44049.0,44048.0,0.23011]
[1641417614492,1.42,44049.0,44048.0,0.23011]
[1641417614889,0.17034488,44050.0,44048.0,0.23011]
[1641417617093,0.17934488,44050.0,44048.0,0.23011]
[1641417617293,2.37640305,44049.0,44048.0,0.23011]
[1641417617493,2.19,44049.0,44048.0,0.23011]
[1641417618738,0.22034488,44050.0,44048.0,0.23011]
[1641417619138,0.01,44049.0,44048.0,0.23011]
[1641417620137,0.96,44049.0,44048.0,0.23011]
[1641417620338,0.95,44049.0,44048.0,0.23011]
[1641417621138,0.01,44049.0,44048.0,0.23011]
[1641417622390,0.22034488,44050.0,44048.0,0.23011]
[1641417623193,0.23134488,44050.0,44048.0,0.23011]
[1641417623892,0.23134488,44050.0,44048.0,0.22989]
[1641417623893,2.3752,44049.0,44048.0,0.22989]
[1641417624093,2.77906022,44049.0,44048.0,0.22989]
[1641417624293,2.57906022,44049.0,44048.0,0.22989]
[1641417624491,2.27989,44048.0,44047.0,0.00033]
[1641417624694,2.92868722,44048.0,44046.0,0.00044]
[1641417624890,3.55583459,44048.0,44044.0,0.00022]
[1641417625090,0.170395,44047.0,44044.0,0.00022]
[1641417625294,0.0452,44046.0,44044.0,0.00022]
[1641417627241,0.0552,44046.0,44045.0,0.00169022]
[1641417627444,0.2528833,44046.0,44045.0,0.00169022]
[1641417628441,0.2428833,44046.0,44045.0,0.00169022]
[1641417629241,0.2528833,44046.0,44045.0,0.00169022]
[1641417630491,0.2478833,44046.0,44045.0,0.00169022]
[1641417631093,0.1976833,44046.0,44045.0,0.00169022]
[1641417631292,0.01,44046.0,44045.0,0.00169022]
[1641417632490,0.170395,44047.0,44045.0,0.00169022]
[1641417633150,0.178395,44047.0,44045.0,0.00169022]
[1641417633339,0.235185,44047.0,44045.0,0.00169022]
[1641417633839,0.235185,44047.0,44045.0,0.23169022]
[1641417634139,0.335185,44047.0,44045.0,0.23169022]
[1641417634939,0.327185,44047.0,44045.0,0.23169022]
[1641417635139,0.335185,44047.0,44045.0,0.23169022]
[1641417636146,0.435185,44047.0,44045.0,0.23169022]
[1641417636341,0.427185,44047.0,44045.0,0.23169022]
[1641417636544,0.227185,44047.0,44045.0,0.23169022]
[1641417637190,0.237185,44047.0,44045.0,0.23169022]
[1641417637390,0.337185,44047.0,44045.0,0.23169022]
[1641417637989,2.3252,44046.0,44045.0,0.23169022]
[1641417638189,2.4252,44046.0,44045.0,0.23169022]
[1641417639191,2.4362,44046.0,44045.0,0.23169022]
[1641417639490,0.15598559,44046.0,44045.0,0.23169022]
[1641417639690,0.05598559,44046.0,44045.0,0.23169022]
[1641417640492,0.04498559,44046.0,44045.0,0.23169022]
[1641417641344,0.05298559,44046.0,44045.0,0.23169022]
[1641417641939,1.46298559,44046.0,44045.0,0.23169022]
[1641417642139,1.56298559,44046.0,44045.0,0.23169022]
[1641417643139,0.14498559,44046.0,44045.0,0.23169022]
[1641417643340,0.15398559,44046.0,44045.0,0.23169022]
[1641417643539,0.05398559,44046.0,44045.0,0.23169022]
[1641417643946,1.20398559,44046.0,44045.0,0.23169022]
[1641417644141,1.30398559,44046.0,44045.0,0.23169022]
[1641417644389,1.30170559,44046.0,44045.0,0.23169022]
[1641417644593,1.29270559,44046.0,44045.0,0.23169022]
[1641417645191,1.30270559,44046.0,44045.0,0.23169022]
[1641417645994,2.43270559,44046.0,44045.0,0.23169022]
[1641417646292,1.30270559,44046.0,44045.0,0.23169022]
[1641417646497,1.29270559,44046.0,44045.0,0.23169022]
[1641417647293,1.30070559,44046.0,44045.0,0.23169022]
[1641417647993,0.05070559,44046.0,44045.0,0.23169022]
[1641417648441,0.04270559,44046.0,44045.0,0.23169022]
[1641417649342,0.05270559,44046.0,44045.0,0.23169022]
[1641417650141,0.05270559,44046.0,44045.0,0.20706322]
[1641417650442,0.10948859,44046.0,44045.0,0.20706322]
[1641417650641,0.09948859,44046.0,44045.0,0.20706322]
[1641417650842,0.86948859,44046.0,44045.0,0.20706322]
[1641417651244,0.87948859,44046.0,44045.0,0.20706322]
[1641417651648,0.166783,44046.0,44045.0,0.20706322]
[1641417652487,0.156783,44046.0,44045.0,0.20706322]
[1641417653389,0.066783,44046.0,44045.0,0.20706322]
[1641417654589,0.056783,44046.0,44045.0,0.20706322]
[1641417655191,0.066783,44046.0,44045.0,0.28043322]
[1641417655394,0.01,44046.0,44045.0,0.38170752]
[1641417655654,0.0001,44046.0,44045.0,2.66421835]
[1641417656442,0.01357886,44054.0,44045.0,2.66421835]
[1641417656643,0.01357886,44054.0,44053.0,0.6520267]
[1641417656850,0.01357886,44054.0,44053.0,1.18994465]
[1641417657046,0.01357886,44054.0,44053.0,1.55875865]
[1641417657246,0.03057886,44054.0,44053.0,1.56575865]
[1641417658246,0.017,44054.0,44053.0,1.56575865]
[1641417658646,0.11352,44062.0,44053.0,1.55875865]
[1641417658847,0.056762,44060.0,44053.0,1.18994465]
[1641417659245,0.056762,44060.0,44053.0,1.20194465]
[1641417659692,0.056761,44060.0,44053.0,1.20194465]
[1641417660091,0.056763,44059.0,44053.0,1.20194465]
[1641417660496,0.056763,44059.0,44053.0,1.18994465]
[1641417661192,0.113523,44060.0,44053.0,1.18994465]
[1641417661395,0.113523,44060.0,44053.0,1.20794465]
[1641417661794,0.056759,44062.0,44058.0,0.1]
[1641417662002,0.9503,44078.0,44068.0,0.41531546]
[1641417662194,0.665,44080.0,44068.0,0.41531546]
[1641417662195,0.01975954,44073.0,44069.0,0.00124546]
[1641417662595,0.01975954,44073.0,44070.0,0.368814]
[1641417662896,0.01975954,44073.0,44072.0,0.25970297]
[1641417663354,0.01975954,44073.0,44072.0,0.00124361]
[1641417663554,0.01975954,44073.0,44070.0,0.004]
[1641417663953,0.07650654,44073.0,44070.0,0.004]
[1641417664559,0.18325554,44073.0,44067.0,0.26003964]
[1641417664755,0.056751,44070.0,44063.0,0.00120233]
[1641417664953,0.1,44073.0,44063.0,0.00120233]
[1641417665154,0.113505,44072.0,44064.0,0.34944805]
[1641417665355,0.05,44073.0,44064.0,0.34944805]
[1641417665553,0.056748,44073.0,44064.0,0.34944805]
[1641417665953,0.05675,44070.0,44063.0,0.00220233]
[1641417666354,0.19434084,44074.0,44063.0,0.00220233]
[1641417666556,0.19434084,44074.0,44064.0,0.29140238]
[1641417666987,0.05675,44070.0,44064.0,0.60706841]
[1641417667193,0.05675,44070.0,44064.0,0.29140238]
[1641417667387,0.05675,44070.0,44064.0,0.29340238]
[1641417667789,0.2851,44083.0,44064.0,0.29340238]
[1641417667790,0.20158838,44078.0,44068.0,0.0012099]
[1641417667989,0.056742,44076.0,44068.0,0.1028699]
[1641417668191,0.20158838,44077.0,44068.0,0.1028699]
[1641417668391,0.20158838,44077.0,44068.0,0.10166]
[1641417668690,0.20158838,44081.0,44069.0,0.39469837]
[1641417668891,0.113496,44075.0,44068.0,0.03861]
[1641417669091,0.056753,44069.0,44064.0,0.002]
[1641417669292,0.056753,44067.0,44064.0,0.002]
[1641417669492,0.20158838,44073.0,44064.0,0.002]
[1641417669695,0.20158838,44077.0,44065.0,0.00124965]
[1641417669891,0.25158838,44077.0,44066.0,0.53388098]
[1641417670092,0.05674802,44075.0,44066.0,0.53388098]
[1641417670942,0.056749,44072.0,44066.0,0.53388098]
[1641417671145,0.056749,44071.0,44066.0,0.53388098]
[1641417671441,0.056749,44071.0,44066.0,0.53888098]
[1641417672048,0.113501,44070.0,44066.0,0.53888098]
[1641417672350,0.113486,44079.0,44068.0,0.01783331]
[1641417672546,0.113486,44079.0,44068.0,0.11783331]
[1641417672744,0.113486,44080.0,44068.0,0.11783331]
[1641417672947,0.113486,44080.0,44075.0,0.5989589]
[1641417673144,0.113479,44084.0,44077.0,0.38764524]
[1641417673344,0.056738,44082.0,44077.0,0.46938524]
[1641417673545,0.11347,44086.0,44077.0,0.46938524]
[1641417673751,0.5,44096.0,44085.0,0.00126995]
[1641417673948,0.9797,44097.0,44085.0,0.02717995]
[1641417674145,0.544,44100.0,44085.0,0.02717995]
[1641417674398,0.544,44100.0,44087.0,0.59105142]
[1641417674399,0.226906,44093.0,44087.0,0.59105142]
[1641417674601,0.226906,44093.0,44087.0,1.04289099]
[1641417675007,0.0567264,44092.0,44087.0,1.04289099]
[1641417675201,0.0567264,44092.0,44087.0,1.04413996]
[1641417675502,0.056727,44090.0,44087.0,0.00224897]
[1641417675902,0.170205,44090.0,44087.0,0.23224897]
[1641417676101,0.05,44089.0,44087.0,0.23224897]
[1641417676305,0.226943,44090.0,44087.0,0.23224897]
[1641417676603,0.113465,44090.0,44088.0,0.33627618]
[1641417676901,0.113465,44090.0,44089.0,0.64480851]
[1641417677506,0.056727,44091.0,44089.0,0.64480851]
[1641417677702,0.056722,44092.0,44089.0,0.64480851]
[1641417677703,0.051722,44092.0,44089.0,0.64480851]
[1641417680844,0.051722,44092.0,44090.0,0.00124894]
[1641417681044,0.056722,44093.0,44090.0,0.00124894]
[1641417681345,0.056719,44094.0,44090.0,0.00224894]
[1641417681992,0.056719,44095.0,44090.0,0.00224894]
[1641417682193,0.05672,44094.0,44090.0,0.00224894]
[1641417682596,0.05672,44094.0,44090.0,0.00124894]
[1641417682992,0.056721,44093.0,44090.0,0.00124894]
[1641417683193,0.056722,44092.0,44090.0,0.00124894]
[1641417683392,0.004,44099.0,44090.0,0.00624894]
[1641417683595,0.004,44099.0,44092.0,0.00125979]
[1641417683893,0.004,44099.0,44090.0,0.00624894]
[1641417684092,0.056719,44095.0,44090.0,0.00624894]
[1641417684691,0.056719,44095.0,44090.0,0.00124894]
[1641417685097,0.05672,44095.0,44090.0,0.00124894]
[1641417685297,0.05672,44095.0,44090.0,0.00524894]
[1641417685298,0.056721,44094.0,44090.0,0.00524894]
[1641417685498,0.101921,44094.0,44090.0,0.00524894]
[1641417685753,0.1134625,44093.0,44090.0,0.00524894]
[1641417685951,0.0452,44092.0,44090.0,0.00524894]
[1641417686351,0.0452,44092.0,44090.0,0.50524894]
[1641417686550,0.0952,44092.0,44090.0,0.50524894]
[1641417686750,0.0752,44092.0,44090.0,0.50124894]
[1641417686950,0.08193093,44092.0,44090.0,0.50124894]
[1641417687249,0.13193093,44092.0,44090.0,0.50124894]
[1641417687450,0.14093093,44092.0,44090.0,0.50124894]
[1641417688151,0.190926,44092.0,44090.0,0.50124894]
[1641417688350,0.140926,44092.0,44090.0,0.50124894]
[1641417688552,0.176926,44092.0,44090.0,0.50124894]
[1641417688951,0.056726,44092.0,44090.0,0.50124894]
[1641417689390,0.099726,44092.0,44090.0,0.50324894]
[1641417689791,0.056723,44091.0,44090.0,0.50324894]
[1641417690297,0.099726,44092.0,44090.0,0.50447619]
[1641417690298,0.043,44092.0,44090.0,0.50447619]
[1641417690691,0.004,44099.0,44090.0,0.50124894]